{"text_format":"3","workbook":"xlsx","n_sheets":4,"sheets":["Začátek","PARAMETRY PROJEKTU","PODROBNOSTI PROJEKTU","CELKOVÉ ČÁSTKY PROJEKTU"],"not_rendered":{"charts":2,"defined_names":3,"pivot_tables":1},"read":"whole","date_system":"1900"}

{"sheet":"Začátek","index":0,"n_rows":8,"n_cols":2,"rows_kept":8}
[null,"INFORMACE O TÉTO ŠABLONĚ"]
[]
[null,"Tento sešit slouží ke sledování parametry projektu, podrobnosti projektu a celkové částky projektu při plánování projektu pro advokátní kanceláře."]
[null,"Když zadáte název společnosti v listu Parametry projektu, automaticky se doplní do dalších listů."]
[null,"Když zadáte informace do listu Parametry projektu, aktualizují se sloupcové grafy a na listu Podrobnosti projektu. Kontingenční tabulka na listu Celkové částky projektu se aktualizuje automaticky."]
[null,"Poznámka:  "]
[null,"Další pokyny jsou k dispozici ve sloupci A na každém listu. Tento text je záměrně skrytý. Pokud ho chcete odebrat, vyberte sloupec A a stiskněte klávesu ODSTRANIT. Pokud ho chcete zobrazit, vyberte sloupec A a změňte barvu písma."]
[null,"Další informace o tabulkách na listech si zobrazíte tak, že v tabulce stisknete klávesu SHIFT a potom F10, vyberete možnost TABULKA a pak vyberete ALTERNATIVNÍ TEXT. V kontingenční tabulce Celkové částky projektu stiskněte SHIFT a potom F10, vyberte MOŽNOSTI KONTINGENČNÍ TABULKY a pak vyberte kartu ALTERNATIVNÍ TEXT."]

{"sheet":"PARAMETRY PROJEKTU","index":1,"n_rows":19,"n_cols":9,"rows_kept":19}
["Na tomto listu vytvořte Parametry projektu. Do buňky napravo zadejte název společnosti. Užitečné pokyny jsou v buňkách v tomto sloupci.","Název společnosti"]
["V buňce napravo je název tohoto listu.","Plánování projektu pro advokátní kanceláře"]
["V buňce napravo je zpráva o důvěrnosti nebo utajení.",{"$f":"B1&\" – důvěrné\"","v":"Název společnosti – důvěrné"}]
["V buňce napravo je k dispozici tip.","Šedě vybarvené buňky se vám počítají automaticky. Nic do nich nezadáváte."]
["Zadejte podrobnosti do tabulky Parametry, která začíná v buňce napravo. Další pokyn je v buňce A12.","TYP PROJEKTU","GENERÁLNÍ PARTNER","OBCHODNÍ PRÁVNÍK","PRÁVNÍ PORADCE OBHAJOBY","DUŠEVNÍ VLASTNICTVÍ – PRÁVNÍK","BANKROTY – PRÁVNÍK","ADMINISTRATIVNÍ PRACOVNÍCI","CELKEM"]
[null,"Začlenění společnosti",{"v":0.1,"d":"10%"},{"v":0.4,"d":"40%"},{"v":0,"d":"0%"},{"v":0,"d":"0%"},{"v":0,"d":"0%"},{"v":0.5,"d":"50%"},{"$f":"SUM(Parametry[[#This Row],[GENERÁLNÍ PARTNER]:[ADMINISTRATIVNÍ PRACOVNÍCI]])","v":{"v":1,"d":"100%"}}]
[null,"Akvizice společnosti",{"v":0.1,"d":"10%"},{"v":0.4,"d":"40%"},{"v":0,"d":"0%"},{"v":0.1,"d":"10%"},{"v":0,"d":"0%"},{"v":0.4,"d":"40%"},{"$f":"SUM(Parametry[[#This Row],[GENERÁLNÍ PARTNER]:[ADMINISTRATIVNÍ PRACOVNÍCI]])","v":{"v":1,"d":"100%"}}]
[null,"Obhajoba odpovědnosti za výrobek",{"v":0.2,"d":"20%"},{"v":0,"d":"0%"},{"v":0.5,"d":"50%"},{"v":0,"d":"0%"},{"v":0,"d":"0%"},{"v":0.3,"d":"30%"},{"$f":"SUM(Parametry[[#This Row],[GENERÁLNÍ PARTNER]:[ADMINISTRATIVNÍ PRACOVNÍCI]])","v":{"v":1,"d":"100%"}}]
[null,"Patentová žádost",{"v":0.1,"d":"10%"},{"v":0,"d":"0%"},{"v":0,"d":"0%"},{"v":0.6,"d":"60%"},{"v":0,"d":"0%"},{"v":0.3,"d":"30%"},{"$f":"SUM(Parametry[[#This Row],[GENERÁLNÍ PARTNER]:[ADMINISTRATIVNÍ PRACOVNÍCI]])","v":{"v":1,"d":"100%"}}]
[null,"Soud se zaměstnancem",{"v":0.2,"d":"20%"},{"v":0.1,"d":"10%"},{"v":0.4,"d":"40%"},{"v":0,"d":"0%"},{"v":0,"d":"0%"},{"v":0.3,"d":"30%"},{"$f":"SUM(Parametry[[#This Row],[GENERÁLNÍ PARTNER]:[ADMINISTRATIVNÍ PRACOVNÍCI]])","v":{"v":1,"d":"100%"}}]
[null,"Bankrot",{"v":0.1,"d":"10%"},{"v":0.2,"d":"20%"},{"v":0,"d":"0%"},{"v":0,"d":"0%"},{"v":0.4,"d":"40%"},{"v":0.3,"d":"30%"},{"$f":"SUM(Parametry[[#This Row],[GENERÁLNÍ PARTNER]:[ADMINISTRATIVNÍ PRACOVNÍCI]])","v":{"v":1,"d":"100%"}}]
["Zadejte do buněk vpravo Kombinované sazby, buňky C12 až H12. Další pokyn je v buňce A14.","Kombinované sazby",{"v":350,"d":"350 Kč"},{"v":250,"d":"250 Kč"},{"v":300,"d":"300 Kč"},{"v":275,"d":"275 Kč"},{"v":225,"d":"225 Kč"},{"v":125,"d":"125 Kč"}]
[]
["V buňce napravo je sloupcový graf, který zobrazuje porovnání mezi plánované a skutečné náklady, a sloupcový graf, který zobrazuje porovnání mezi plánované a skutečné hodiny, je v buňce F14."]
[null,null,"GENERÁLNÍ PARTNER","FIRMA","PRÁVNÍ PORADCE OBHAJOBY","DUŠEVNÍ VLASTN.","BANKROT","ADMINISTRATIVNÍ PRACOVNÍCI"]
[null,"PLÁNOVANÉ NÁKLADY",{"$f":"SUBTOTAL(109,Podrobnosti[GENERÁLNÍ PARTNER])","v":{"v":78750,"d":"78,750.00 Kč"}},{"$f":"SUBTOTAL(109,Podrobnosti[OBCHODNÍ PRÁVNÍK])","v":{"v":66250,"d":"66,250.00 Kč"}},{"$f":"SUBTOTAL(109,Podrobnosti[PRÁVNÍ PORADCE OBHAJOBY])","v":{"v":105000,"d":"105,000.00 Kč"}},{"$f":"SUBTOTAL(109,Podrobnosti[DUŠEVNÍ VLASTNICTVÍ – PRÁVNÍK])","v":{"v":35750,"d":"35,750.00 Kč"}},{"$f":"SUBTOTAL(109,Podrobnosti[BANKROTY – PRÁVNÍK])","v":{"v":0,"d":"0.00 Kč"}},{"$f":"SUBTOTAL(109,Podrobnosti[ADMINISTRATIVNÍ PRACOVNÍCI])","v":{"v":66250,"d":"66,250.00 Kč"}}]
[null,"SKUTEČNÉ NÁKLADY",{"$f":"SUBTOTAL(109,Podrobnosti[GENERÁLNÍ PARTNER 2])","v":{"v":79275,"d":"79,275.00 Kč"}},{"$f":"SUBTOTAL(109,Podrobnosti[OBCHODNÍ PRÁVNÍK 2])","v":{"v":67375,"d":"67,375.00 Kč"}},{"$f":"SUBTOTAL(109,Podrobnosti[PRÁVNÍ PORADCE OBHAJOBY 2])","v":{"v":105600,"d":"105,600.00 Kč"}},{"$f":"SUBTOTAL(109,Podrobnosti[DUŠEVNÍ VLASTNICTVÍ – PRÁVNÍK 2])","v":{"v":34650,"d":"34,650.00 Kč"}},{"$f":"SUBTOTAL(109,Podrobnosti[BANKROTY – PRÁVNÍK 2])","v":{"v":0,"d":"0.00 Kč"}},{"$f":"SUBTOTAL(109,Podrobnosti[ADMINISTRATIVNÍ PRACOVNÍCI 2])","v":{"v":67000,"d":"67,000.00 Kč"}}]
[null,"PLÁNOVANÉ HODINY",{"$f":"C16/$C$12","v":{"v":225,"d":"225.00"}},{"$f":"D16/$C$12","v":{"v":189.28571428571428,"d":"189.29"}},{"v":300,"d":"300.00"},{"v":102.14285714285714,"d":"102.14"},{"v":0,"d":"0.00"},{"v":189.28571428571428,"d":"189.29"}]
[null,"SKUTEČNÉ HODINY",{"$f":"C17/$C$12","v":{"v":226.5,"d":"226.50"}},{"$f":"D17/$C$12","v":{"v":192.5,"d":"192.50"}},{"$f":"E17/$C$12","v":{"v":301.7142857142857,"d":"301.71"}},{"$f":"F17/$C$12","v":{"v":99,"d":"99.00"}},{"$f":"G17/$C$12","v":{"v":0,"d":"0.00"}},{"$f":"H17/$C$12","v":{"v":191.42857142857142,"d":"191.43"}}]

{"sheet":"PODROBNOSTI PROJEKTU","index":2,"n_rows":10,"n_cols":25,"rows_kept":10,"merged":[[1,24,8,28]]}
["Na tomto listu vytvořte Podrobnosti projektu. V buňce vpravo se automaticky aktualizuje název společnosti. Užitečné pokyny jsou v buňkách v tomto sloupci. Začněte stisknutím šipky dolů.",{"$f":"'PARAMETRY PROJEKTU'!B1","v":"Název společnosti"}]
["V buňce vpravo je název listu a informační tip najdete v buňce Y2.",{"$f":"'PARAMETRY PROJEKTU'!B2","v":"Plánování projektu pro advokátní kanceláře"},{"$nulls":22},"INFORMACE:\nPokud chcete přidat řádek, vyberte pravou dolní buňku v těle tabulky (ne na řádku celkových částek) a stiskněte klávesu Tab. Další možností je kliknout do tabulky na místo, kam chcete vložit řádek, stisknout SHIFT+F10 a vybrat příkaz Vložit | Řádky tabulky nad/pod.\nNezapomeňte odstranit všechny nepoužité řádky, protože kontingenční tabulka CELKOVÉ ČÁSTKY PROJEKTU používá všechny buňky tabulky, takže kdybyste to neudělali, zobrazovala by nesprávné výsledky."]
["V buňce napravo je zpráva o důvěrnosti nebo utajení.",{"$f":"'PARAMETRY PROJEKTU'!B3","v":"Název společnosti – důvěrné"}]
["Zadejte informace do tabulky Podrobnosti, která začíná v buňce napravo. Typ projektu v tabulce podrobnosti napravo se aktualizují automaticky z tabulky Parametry na listu Parametry projektu.","NÁZEV PROJEKTU","TYP PROJEKTU","PŘEDPOKLÁDANÉ ZAHÁJENÍ","PŘEDPOKLÁDANÉ DOKONČENÍ","SKUTEČNÉ ZAHÁJENÍ","SKUTEČNÉ DOKONČENÍ","PŘEDPOKLÁDANÁ PRÁCE","SKUTEČNÁ PRÁCE","PŘEDPOKLÁDANÁ DOBA TRVÁNÍ","SKUTEČNÁ DOBA TRVÁNÍ","GENERÁLNÍ PARTNER","OBCHODNÍ PRÁVNÍK","PRÁVNÍ PORADCE OBHAJOBY","DUŠEVNÍ VLASTNICTVÍ – PRÁVNÍK","BANKROTY – PRÁVNÍK","ADMINISTRATIVNÍ PRACOVNÍCI","GENERÁLNÍ PARTNER 2","OBCHODNÍ PRÁVNÍK 2","PRÁVNÍ PORADCE OBHAJOBY 2","DUŠEVNÍ VLASTNICTVÍ – PRÁVNÍK 2","BANKROTY – PRÁVNÍK 2","ADMINISTRATIVNÍ PRACOVNÍCI 2"]
[null,"Projekt 1","Začlenění společnosti",{"$f":"TODAY()","v":"2019-02-15"},{"$f":"TODAY()+60","v":"2019-04-16"},{"$f":"TODAY()+10","v":"2019-02-25"},{"$f":"TODAY()+65","v":"2019-04-21"},200,220,{"$f":"DAYS360(Podrobnosti[[#This Row],[PŘEDPOKLÁDANÉ ZAHÁJENÍ]],Podrobnosti[[#This Row],[PŘEDPOKLÁDANÉ DOKONČENÍ]],FALSE)","v":61},{"$f":"DAYS360(Podrobnosti[[#This Row],[SKUTEČNÉ ZAHÁJENÍ]],Podrobnosti[[#This Row],[SKUTEČNÉ DOKONČENÍ]],FALSE)","v":56},{"$f":"INDEX(Parametry[],MATCH(Podrobnosti[[#This Row],[TYP PROJEKTU]],Parametry[TYP PROJEKTU],0),MATCH(Podrobnosti[[#Headers],[GENERÁLNÍ PARTNER]],Parametry[#Headers],0))*INDEX('PARAMETRY PROJEKTU'!$B$12:$H$12,1,MATCH(Podrobnosti[[#Headers],[GENERÁLNÍ PARTNER]],Parametry[#Headers],0))*Podrobnosti[[#This Row],[PŘEDPOKLÁDANÁ PRÁCE]]","v":{"v":7000,"d":"7,000 Kč"}},{"$f":"INDEX(Parametry[],MATCH(Podrobnosti[[#This Row],[TYP PROJEKTU]],Parametry[TYP PROJEKTU],0),MATCH(Podrobnosti[[#Headers],[OBCHODNÍ PRÁVNÍK]],Parametry[#Headers],0))*INDEX('PARAMETRY PROJEKTU'!$B$12:$H$12,1,MATCH(Podrobnosti[[#Headers],[OBCHODNÍ PRÁVNÍK]],Parametry[#Headers],0))*Podrobnosti[[#This Row],[PŘEDPOKLÁDANÁ PRÁCE]]","v":{"v":20000,"d":"20,000 Kč"}},{"$f":"INDEX(Parametry[],MATCH(Podrobnosti[[#This Row],[TYP PROJEKTU]],Parametry[TYP PROJEKTU],0),MATCH(Podrobnosti[[#Headers],[PRÁVNÍ PORADCE OBHAJOBY]],Parametry[#Headers],0))*INDEX('PARAMETRY PROJEKTU'!$B$12:$H$12,1,MATCH(Podrobnosti[[#Headers],[PRÁVNÍ PORADCE OBHAJOBY]],Parametry[#Headers],0))*Podrobnosti[[#This Row],[PŘEDPOKLÁDANÁ PRÁCE]]","v":{"v":0,"d":"0 Kč"}},{"$f":"INDEX(Parametry[],MATCH(Podrobnosti[[#This Row],[TYP PROJEKTU]],Parametry[TYP PROJEKTU],0),MATCH(Podrobnosti[[#Headers],[DUŠEVNÍ VLASTNICTVÍ – PRÁVNÍK]],Parametry[#Headers],0))*INDEX('PARAMETRY PROJEKTU'!$B$12:$H$12,1,MATCH(Podrobnosti[[#Headers],[DUŠEVNÍ VLASTNICTVÍ – PRÁVNÍK]],Parametry[#Headers],0))*Podrobnosti[[#This Row],[PŘEDPOKLÁDANÁ PRÁCE]]","v":{"v":0,"d":"0 Kč"}},{"$f":"INDEX(Parametry[],MATCH(Podrobnosti[[#This Row],[TYP PROJEKTU]],Parametry[TYP PROJEKTU],0),MATCH(Podrobnosti[[#Headers],[BANKROTY – PRÁVNÍK]],Parametry[#Headers],0))*INDEX('PARAMETRY PROJEKTU'!$B$12:$H$12,1,MATCH(Podrobnosti[[#Headers],[BANKROTY – PRÁVNÍK]],Parametry[#Headers],0))*Podrobnosti[[#This Row],[PŘEDPOKLÁDANÁ PRÁCE]]","v":{"v":0,"d":"0 Kč"}},{"$f":"INDEX(Parametry[],MATCH(Podrobnosti[[#This Row],[TYP PROJEKTU]],Parametry[TYP PROJEKTU],0),MATCH(Podrobnosti[[#Headers],[ADMINISTRATIVNÍ PRACOVNÍCI]],Parametry[#Headers],0))*INDEX('PARAMETRY PROJEKTU'!$B$12:$H$12,1,MATCH(Podrobnosti[[#Headers],[ADMINISTRATIVNÍ PRACOVNÍCI]],Parametry[#Headers],0))*Podrobnosti[[#This Row],[PŘEDPOKLÁDANÁ PRÁCE]]","v":{"v":12500,"d":"12,500 Kč"}},{"$f":"INDEX(Parametry[],MATCH(Podrobnosti[[#This Row],[TYP PROJEKTU]],Parametry[TYP PROJEKTU],0),MATCH(Podrobnosti[[#Headers],[GENERÁLNÍ PARTNER]],Parametry[#Headers],0))*INDEX('PARAMETRY PROJEKTU'!$B$12:$H$12,1,MATCH(Podrobnosti[[#Headers],[GENERÁLNÍ PARTNER]],Parametry[#Headers],0))*Podrobnosti[[#This Row],[SKUTEČNÁ PRÁCE]]","v":{"v":7700,"d":"7,700 Kč"}},{"$f":"INDEX(Parametry[],MATCH(Podrobnosti[[#This Row],[TYP PROJEKTU]],Parametry[TYP PROJEKTU],0),MATCH(Podrobnosti[[#Headers],[OBCHODNÍ PRÁVNÍK]],Parametry[#Headers],0))*INDEX('PARAMETRY PROJEKTU'!$B$12:$H$12,1,MATCH(Podrobnosti[[#Headers],[OBCHODNÍ PRÁVNÍK]],Parametry[#Headers],0))*Podrobnosti[[#This Row],[SKUTEČNÁ PRÁCE]]","v":{"v":22000,"d":"22,000 Kč"}},{"$f":"INDEX(Parametry[],MATCH(Podrobnosti[[#This Row],[TYP PROJEKTU]],Parametry[TYP PROJEKTU],0),MATCH(Podrobnosti[[#Headers],[PRÁVNÍ PORADCE OBHAJOBY]],Parametry[#Headers],0))*INDEX('PARAMETRY PROJEKTU'!$B$12:$H$12,1,MATCH(Podrobnosti[[#Headers],[PRÁVNÍ PORADCE OBHAJOBY]],Parametry[#Headers],0))*Podrobnosti[[#This Row],[SKUTEČNÁ PRÁCE]]","v":{"v":0,"d":"0 Kč"}},{"$f":"INDEX(Parametry[],MATCH(Podrobnosti[[#This Row],[TYP PROJEKTU]],Parametry[TYP PROJEKTU],0),MATCH(Podrobnosti[[#Headers],[DUŠEVNÍ VLASTNICTVÍ – PRÁVNÍK]],Parametry[#Headers],0))*INDEX('PARAMETRY PROJEKTU'!$B$12:$H$12,1,MATCH(Podrobnosti[[#Headers],[DUŠEVNÍ VLASTNICTVÍ – PRÁVNÍK]],Parametry[#Headers],0))*Podrobnosti[[#This Row],[SKUTEČNÁ PRÁCE]]","v":{"v":0,"d":"0 Kč"}},{"$f":"INDEX(Parametry[],MATCH(Podrobnosti[[#This Row],[TYP PROJEKTU]],Parametry[TYP PROJEKTU],0),MATCH(Podrobnosti[[#Headers],[BANKROTY – PRÁVNÍK]],Parametry[#Headers],0))*INDEX('PARAMETRY PROJEKTU'!$B$12:$H$12,1,MATCH(Podrobnosti[[#Headers],[BANKROTY – PRÁVNÍK]],Parametry[#Headers],0))*Podrobnosti[[#This Row],[SKUTEČNÁ PRÁCE]]","v":{"v":0,"d":"0 Kč"}},{"$f":"INDEX(Parametry[],MATCH(Podrobnosti[[#This Row],[TYP PROJEKTU]],Parametry[TYP PROJEKTU],0),MATCH(Podrobnosti[[#Headers],[ADMINISTRATIVNÍ PRACOVNÍCI]],Parametry[#Headers],0))*INDEX('PARAMETRY PROJEKTU'!$B$12:$H$12,1,MATCH(Podrobnosti[[#Headers],[ADMINISTRATIVNÍ PRACOVNÍCI]],Parametry[#Headers],0))*Podrobnosti[[#This Row],[SKUTEČNÁ PRÁCE]]","v":{"v":13750,"d":"13,750 Kč"}}]
[null,"Projekt 2","Akvizice společnosti",{"$f":"TODAY()+30","v":"2019-03-17"},{"$f":"TODAY()+100","v":"2019-05-26"},{"$f":"TODAY()+40","v":"2019-03-27"},{"$f":"TODAY()+110","v":"2019-06-05"},400,390,{"$f":"DAYS360(Podrobnosti[[#This Row],[PŘEDPOKLÁDANÉ ZAHÁJENÍ]],Podrobnosti[[#This Row],[PŘEDPOKLÁDANÉ DOKONČENÍ]],FALSE)","v":69},{"$f":"DAYS360(Podrobnosti[[#This Row],[SKUTEČNÉ ZAHÁJENÍ]],Podrobnosti[[#This Row],[SKUTEČNÉ DOKONČENÍ]],FALSE)","v":68},{"$f":"INDEX(Parametry[],MATCH(Podrobnosti[[#This Row],[TYP PROJEKTU]],Parametry[TYP PROJEKTU],0),MATCH(Podrobnosti[[#Headers],[GENERÁLNÍ PARTNER]],Parametry[#Headers],0))*INDEX('PARAMETRY PROJEKTU'!$B$12:$H$12,1,MATCH(Podrobnosti[[#Headers],[GENERÁLNÍ PARTNER]],Parametry[#Headers],0))*Podrobnosti[[#This Row],[PŘEDPOKLÁDANÁ PRÁCE]]","v":{"v":14000,"d":"14,000 Kč"}},{"$f":"INDEX(Parametry[],MATCH(Podrobnosti[[#This Row],[TYP PROJEKTU]],Parametry[TYP PROJEKTU],0),MATCH(Podrobnosti[[#Headers],[OBCHODNÍ PRÁVNÍK]],Parametry[#Headers],0))*INDEX('PARAMETRY PROJEKTU'!$B$12:$H$12,1,MATCH(Podrobnosti[[#Headers],[OBCHODNÍ PRÁVNÍK]],Parametry[#Headers],0))*Podrobnosti[[#This Row],[PŘEDPOKLÁDANÁ PRÁCE]]","v":{"v":40000,"d":"40,000 Kč"}},{"$f":"INDEX(Parametry[],MATCH(Podrobnosti[[#This Row],[TYP PROJEKTU]],Parametry[TYP PROJEKTU],0),MATCH(Podrobnosti[[#Headers],[PRÁVNÍ PORADCE OBHAJOBY]],Parametry[#Headers],0))*INDEX('PARAMETRY PROJEKTU'!$B$12:$H$12,1,MATCH(Podrobnosti[[#Headers],[PRÁVNÍ PORADCE OBHAJOBY]],Parametry[#Headers],0))*Podrobnosti[[#This Row],[PŘEDPOKLÁDANÁ PRÁCE]]","v":{"v":0,"d":"0 Kč"}},{"$f":"INDEX(Parametry[],MATCH(Podrobnosti[[#This Row],[TYP PROJEKTU]],Parametry[TYP PROJEKTU],0),MATCH(Podrobnosti[[#Headers],[DUŠEVNÍ VLASTNICTVÍ – PRÁVNÍK]],Parametry[#Headers],0))*INDEX('PARAMETRY PROJEKTU'!$B$12:$H$12,1,MATCH(Podrobnosti[[#Headers],[DUŠEVNÍ VLASTNICTVÍ – PRÁVNÍK]],Parametry[#Headers],0))*Podrobnosti[[#This Row],[PŘEDPOKLÁDANÁ PRÁCE]]","v":{"v":11000,"d":"11,000 Kč"}},{"$f":"INDEX(Parametry[],MATCH(Podrobnosti[[#This Row],[TYP PROJEKTU]],Parametry[TYP PROJEKTU],0),MATCH(Podrobnosti[[#Headers],[BANKROTY – PRÁVNÍK]],Parametry[#Headers],0))*INDEX('PARAMETRY PROJEKTU'!$B$12:$H$12,1,MATCH(Podrobnosti[[#Headers],[BANKROTY – PRÁVNÍK]],Parametry[#Headers],0))*Podrobnosti[[#This Row],[PŘEDPOKLÁDANÁ PRÁCE]]","v":{"v":0,"d":"0 Kč"}},{"$f":"INDEX(Parametry[],MATCH(Podrobnosti[[#This Row],[TYP PROJEKTU]],Parametry[TYP PROJEKTU],0),MATCH(Podrobnosti[[#Headers],[ADMINISTRATIVNÍ PRACOVNÍCI]],Parametry[#Headers],0))*INDEX('PARAMETRY PROJEKTU'!$B$12:$H$12,1,MATCH(Podrobnosti[[#Headers],[ADMINISTRATIVNÍ PRACOVNÍCI]],Parametry[#Headers],0))*Podrobnosti[[#This Row],[PŘEDPOKLÁDANÁ PRÁCE]]","v":{"v":20000,"d":"20,000 Kč"}},{"$f":"INDEX(Parametry[],MATCH(Podrobnosti[[#This Row],[TYP PROJEKTU]],Parametry[TYP PROJEKTU],0),MATCH(Podrobnosti[[#Headers],[GENERÁLNÍ PARTNER]],Parametry[#Headers],0))*INDEX('PARAMETRY PROJEKTU'!$B$12:$H$12,1,MATCH(Podrobnosti[[#Headers],[GENERÁLNÍ PARTNER]],Parametry[#Headers],0))*Podrobnosti[[#This Row],[SKUTEČNÁ PRÁCE]]","v":{"v":13650,"d":"13,650 Kč"}},{"$f":"INDEX(Parametry[],MATCH(Podrobnosti[[#This Row],[TYP PROJEKTU]],Parametry[TYP PROJEKTU],0),MATCH(Podrobnosti[[#Headers],[OBCHODNÍ PRÁVNÍK]],Parametry[#Headers],0))*INDEX('PARAMETRY PROJEKTU'!$B$12:$H$12,1,MATCH(Podrobnosti[[#Headers],[OBCHODNÍ PRÁVNÍK]],Parametry[#Headers],0))*Podrobnosti[[#This Row],[SKUTEČNÁ PRÁCE]]","v":{"v":39000,"d":"39,000 Kč"}},{"$f":"INDEX(Parametry[],MATCH(Podrobnosti[[#This Row],[TYP PROJEKTU]],Parametry[TYP PROJEKTU],0),MATCH(Podrobnosti[[#Headers],[PRÁVNÍ PORADCE OBHAJOBY]],Parametry[#Headers],0))*INDEX('PARAMETRY PROJEKTU'!$B$12:$H$12,1,MATCH(Podrobnosti[[#Headers],[PRÁVNÍ PORADCE OBHAJOBY]],Parametry[#Headers],0))*Podrobnosti[[#This Row],[SKUTEČNÁ PRÁCE]]","v":{"v":0,"d":"0 Kč"}},{"$f":"INDEX(Parametry[],MATCH(Podrobnosti[[#This Row],[TYP PROJEKTU]],Parametry[TYP PROJEKTU],0),MATCH(Podrobnosti[[#Headers],[DUŠEVNÍ VLASTNICTVÍ – PRÁVNÍK]],Parametry[#Headers],0))*INDEX('PARAMETRY PROJEKTU'!$B$12:$H$12,1,MATCH(Podrobnosti[[#Headers],[DUŠEVNÍ VLASTNICTVÍ – PRÁVNÍK]],Parametry[#Headers],0))*Podrobnosti[[#This Row],[SKUTEČNÁ PRÁCE]]","v":{"v":10725,"d":"10,725 Kč"}},{"$f":"INDEX(Parametry[],MATCH(Podrobnosti[[#This Row],[TYP PROJEKTU]],Parametry[TYP PROJEKTU],0),MATCH(Podrobnosti[[#Headers],[BANKROTY – PRÁVNÍK]],Parametry[#Headers],0))*INDEX('PARAMETRY PROJEKTU'!$B$12:$H$12,1,MATCH(Podrobnosti[[#Headers],[BANKROTY – PRÁVNÍK]],Parametry[#Headers],0))*Podrobnosti[[#This Row],[SKUTEČNÁ PRÁCE]]","v":{"v":0,"d":"0 Kč"}},{"$f":"INDEX(Parametry[],MATCH(Podrobnosti[[#This Row],[TYP PROJEKTU]],Parametry[TYP PROJEKTU],0),MATCH(Podrobnosti[[#Headers],[ADMINISTRATIVNÍ PRACOVNÍCI]],Parametry[#Headers],0))*INDEX('PARAMETRY PROJEKTU'!$B$12:$H$12,1,MATCH(Podrobnosti[[#Headers],[ADMINISTRATIVNÍ PRACOVNÍCI]],Parametry[#Headers],0))*Podrobnosti[[#This Row],[SKUTEČNÁ PRÁCE]]","v":{"v":19500,"d":"19,500 Kč"}}]
[null,"Projekt 3","Obhajoba odpovědnosti za výrobek",{"$f":"TODAY()+150","v":"2019-07-15"},{"$f":"TODAY()+150","v":"2019-07-15"},{"$f":"TODAY()+150","v":"2019-07-15"},{"$f":"TODAY()+170","v":"2019-08-04"},500,500,{"$f":"DAYS360(Podrobnosti[[#This Row],[PŘEDPOKLÁDANÉ ZAHÁJENÍ]],Podrobnosti[[#This Row],[PŘEDPOKLÁDANÉ DOKONČENÍ]],FALSE)","v":0},{"$f":"DAYS360(Podrobnosti[[#This Row],[SKUTEČNÉ ZAHÁJENÍ]],Podrobnosti[[#This Row],[SKUTEČNÉ DOKONČENÍ]],FALSE)","v":19},{"$f":"INDEX(Parametry[],MATCH(Podrobnosti[[#This Row],[TYP PROJEKTU]],Parametry[TYP PROJEKTU],0),MATCH(Podrobnosti[[#Headers],[GENERÁLNÍ PARTNER]],Parametry[#Headers],0))*INDEX('PARAMETRY PROJEKTU'!$B$12:$H$12,1,MATCH(Podrobnosti[[#Headers],[GENERÁLNÍ PARTNER]],Parametry[#Headers],0))*Podrobnosti[[#This Row],[PŘEDPOKLÁDANÁ PRÁCE]]","v":{"v":35000,"d":"35,000 Kč"}},{"$f":"INDEX(Parametry[],MATCH(Podrobnosti[[#This Row],[TYP PROJEKTU]],Parametry[TYP PROJEKTU],0),MATCH(Podrobnosti[[#Headers],[OBCHODNÍ PRÁVNÍK]],Parametry[#Headers],0))*INDEX('PARAMETRY PROJEKTU'!$B$12:$H$12,1,MATCH(Podrobnosti[[#Headers],[OBCHODNÍ PRÁVNÍK]],Parametry[#Headers],0))*Podrobnosti[[#This Row],[PŘEDPOKLÁDANÁ PRÁCE]]","v":{"v":0,"d":"0 Kč"}},{"$f":"INDEX(Parametry[],MATCH(Podrobnosti[[#This Row],[TYP PROJEKTU]],Parametry[TYP PROJEKTU],0),MATCH(Podrobnosti[[#Headers],[PRÁVNÍ PORADCE OBHAJOBY]],Parametry[#Headers],0))*INDEX('PARAMETRY PROJEKTU'!$B$12:$H$12,1,MATCH(Podrobnosti[[#Headers],[PRÁVNÍ PORADCE OBHAJOBY]],Parametry[#Headers],0))*Podrobnosti[[#This Row],[PŘEDPOKLÁDANÁ PRÁCE]]","v":{"v":75000,"d":"75,000 Kč"}},{"$f":"INDEX(Parametry[],MATCH(Podrobnosti[[#This Row],[TYP PROJEKTU]],Parametry[TYP PROJEKTU],0),MATCH(Podrobnosti[[#Headers],[DUŠEVNÍ VLASTNICTVÍ – PRÁVNÍK]],Parametry[#Headers],0))*INDEX('PARAMETRY PROJEKTU'!$B$12:$H$12,1,MATCH(Podrobnosti[[#Headers],[DUŠEVNÍ VLASTNICTVÍ – PRÁVNÍK]],Parametry[#Headers],0))*Podrobnosti[[#This Row],[PŘEDPOKLÁDANÁ PRÁCE]]","v":{"v":0,"d":"0 Kč"}},{"$f":"INDEX(Parametry[],MATCH(Podrobnosti[[#This Row],[TYP PROJEKTU]],Parametry[TYP PROJEKTU],0),MATCH(Podrobnosti[[#Headers],[BANKROTY – PRÁVNÍK]],Parametry[#Headers],0))*INDEX('PARAMETRY PROJEKTU'!$B$12:$H$12,1,MATCH(Podrobnosti[[#Headers],[BANKROTY – PRÁVNÍK]],Parametry[#Headers],0))*Podrobnosti[[#This Row],[PŘEDPOKLÁDANÁ PRÁCE]]","v":{"v":0,"d":"0 Kč"}},{"$f":"INDEX(Parametry[],MATCH(Podrobnosti[[#This Row],[TYP PROJEKTU]],Parametry[TYP PROJEKTU],0),MATCH(Podrobnosti[[#Headers],[ADMINISTRATIVNÍ PRACOVNÍCI]],Parametry[#Headers],0))*INDEX('PARAMETRY PROJEKTU'!$B$12:$H$12,1,MATCH(Podrobnosti[[#Headers],[ADMINISTRATIVNÍ PRACOVNÍCI]],Parametry[#Headers],0))*Podrobnosti[[#This Row],[PŘEDPOKLÁDANÁ PRÁCE]]","v":{"v":18750,"d":"18,750 Kč"}},{"$f":"INDEX(Parametry[],MATCH(Podrobnosti[[#This Row],[TYP PROJEKTU]],Parametry[TYP PROJEKTU],0),MATCH(Podrobnosti[[#Headers],[GENERÁLNÍ PARTNER]],Parametry[#Headers],0))*INDEX('PARAMETRY PROJEKTU'!$B$12:$H$12,1,MATCH(Podrobnosti[[#Headers],[GENERÁLNÍ PARTNER]],Parametry[#Headers],0))*Podrobnosti[[#This Row],[SKUTEČNÁ PRÁCE]]","v":{"v":35000,"d":"35,000 Kč"}},{"$f":"INDEX(Parametry[],MATCH(Podrobnosti[[#This Row],[TYP PROJEKTU]],Parametry[TYP PROJEKTU],0),MATCH(Podrobnosti[[#Headers],[OBCHODNÍ PRÁVNÍK]],Parametry[#Headers],0))*INDEX('PARAMETRY PROJEKTU'!$B$12:$H$12,1,MATCH(Podrobnosti[[#Headers],[OBCHODNÍ PRÁVNÍK]],Parametry[#Headers],0))*Podrobnosti[[#This Row],[SKUTEČNÁ PRÁCE]]","v":{"v":0,"d":"0 Kč"}},{"$f":"INDEX(Parametry[],MATCH(Podrobnosti[[#This Row],[TYP PROJEKTU]],Parametry[TYP PROJEKTU],0),MATCH(Podrobnosti[[#Headers],[PRÁVNÍ PORADCE OBHAJOBY]],Parametry[#Headers],0))*INDEX('PARAMETRY PROJEKTU'!$B$12:$H$12,1,MATCH(Podrobnosti[[#Headers],[PRÁVNÍ PORADCE OBHAJOBY]],Parametry[#Headers],0))*Podrobnosti[[#This Row],[SKUTEČNÁ PRÁCE]]","v":{"v":75000,"d":"75,000 Kč"}},{"$f":"INDEX(Parametry[],MATCH(Podrobnosti[[#This Row],[TYP PROJEKTU]],Parametry[TYP PROJEKTU],0),MATCH(Podrobnosti[[#Headers],[DUŠEVNÍ VLASTNICTVÍ – PRÁVNÍK]],Parametry[#Headers],0))*INDEX('PARAMETRY PROJEKTU'!$B$12:$H$12,1,MATCH(Podrobnosti[[#Headers],[DUŠEVNÍ VLASTNICTVÍ – PRÁVNÍK]],Parametry[#Headers],0))*Podrobnosti[[#This Row],[SKUTEČNÁ PRÁCE]]","v":{"v":0,"d":"0 Kč"}},{"$f":"INDEX(Parametry[],MATCH(Podrobnosti[[#This Row],[TYP PROJEKTU]],Parametry[TYP PROJEKTU],0),MATCH(Podrobnosti[[#Headers],[BANKROTY – PRÁVNÍK]],Parametry[#Headers],0))*INDEX('PARAMETRY PROJEKTU'!$B$12:$H$12,1,MATCH(Podrobnosti[[#Headers],[BANKROTY – PRÁVNÍK]],Parametry[#Headers],0))*Podrobnosti[[#This Row],[SKUTEČNÁ PRÁCE]]","v":{"v":0,"d":"0 Kč"}},{"$f":"INDEX(Parametry[],MATCH(Podrobnosti[[#This Row],[TYP PROJEKTU]],Parametry[TYP PROJEKTU],0),MATCH(Podrobnosti[[#Headers],[ADMINISTRATIVNÍ PRACOVNÍCI]],Parametry[#Headers],0))*INDEX('PARAMETRY PROJEKTU'!$B$12:$H$12,1,MATCH(Podrobnosti[[#Headers],[ADMINISTRATIVNÍ PRACOVNÍCI]],Parametry[#Headers],0))*Podrobnosti[[#This Row],[SKUTEČNÁ PRÁCE]]","v":{"v":18750,"d":"18,750 Kč"}}]
[null,"Projekt 4","Patentová žádost",{"$f":"TODAY()+200","v":"2019-09-03"},{"$f":"TODAY()+230","v":"2019-10-03"},{"$f":"TODAY()+230","v":"2019-10-03"},{"$f":"TODAY()+230","v":"2019-10-03"},150,145,{"$f":"DAYS360(Podrobnosti[[#This Row],[PŘEDPOKLÁDANÉ ZAHÁJENÍ]],Podrobnosti[[#This Row],[PŘEDPOKLÁDANÉ DOKONČENÍ]],FALSE)","v":30},{"$f":"DAYS360(Podrobnosti[[#This Row],[SKUTEČNÉ ZAHÁJENÍ]],Podrobnosti[[#This Row],[SKUTEČNÉ DOKONČENÍ]],FALSE)","v":0},{"$f":"INDEX(Parametry[],MATCH(Podrobnosti[[#This Row],[TYP PROJEKTU]],Parametry[TYP PROJEKTU],0),MATCH(Podrobnosti[[#Headers],[GENERÁLNÍ PARTNER]],Parametry[#Headers],0))*INDEX('PARAMETRY PROJEKTU'!$B$12:$H$12,1,MATCH(Podrobnosti[[#Headers],[GENERÁLNÍ PARTNER]],Parametry[#Headers],0))*Podrobnosti[[#This Row],[PŘEDPOKLÁDANÁ PRÁCE]]","v":{"v":5250,"d":"5,250 Kč"}},{"$f":"INDEX(Parametry[],MATCH(Podrobnosti[[#This Row],[TYP PROJEKTU]],Parametry[TYP PROJEKTU],0),MATCH(Podrobnosti[[#Headers],[OBCHODNÍ PRÁVNÍK]],Parametry[#Headers],0))*INDEX('PARAMETRY PROJEKTU'!$B$12:$H$12,1,MATCH(Podrobnosti[[#Headers],[OBCHODNÍ PRÁVNÍK]],Parametry[#Headers],0))*Podrobnosti[[#This Row],[PŘEDPOKLÁDANÁ PRÁCE]]","v":{"v":0,"d":"0 Kč"}},{"$f":"INDEX(Parametry[],MATCH(Podrobnosti[[#This Row],[TYP PROJEKTU]],Parametry[TYP PROJEKTU],0),MATCH(Podrobnosti[[#Headers],[PRÁVNÍ PORADCE OBHAJOBY]],Parametry[#Headers],0))*INDEX('PARAMETRY PROJEKTU'!$B$12:$H$12,1,MATCH(Podrobnosti[[#Headers],[PRÁVNÍ PORADCE OBHAJOBY]],Parametry[#Headers],0))*Podrobnosti[[#This Row],[PŘEDPOKLÁDANÁ PRÁCE]]","v":{"v":0,"d":"0 Kč"}},{"$f":"INDEX(Parametry[],MATCH(Podrobnosti[[#This Row],[TYP PROJEKTU]],Parametry[TYP PROJEKTU],0),MATCH(Podrobnosti[[#Headers],[DUŠEVNÍ VLASTNICTVÍ – PRÁVNÍK]],Parametry[#Headers],0))*INDEX('PARAMETRY PROJEKTU'!$B$12:$H$12,1,MATCH(Podrobnosti[[#Headers],[DUŠEVNÍ VLASTNICTVÍ – PRÁVNÍK]],Parametry[#Headers],0))*Podrobnosti[[#This Row],[PŘEDPOKLÁDANÁ PRÁCE]]","v":{"v":24750,"d":"24,750 Kč"}},{"$f":"INDEX(Parametry[],MATCH(Podrobnosti[[#This Row],[TYP PROJEKTU]],Parametry[TYP PROJEKTU],0),MATCH(Podrobnosti[[#Headers],[BANKROTY – PRÁVNÍK]],Parametry[#Headers],0))*INDEX('PARAMETRY PROJEKTU'!$B$12:$H$12,1,MATCH(Podrobnosti[[#Headers],[BANKROTY – PRÁVNÍK]],Parametry[#Headers],0))*Podrobnosti[[#This Row],[PŘEDPOKLÁDANÁ PRÁCE]]","v":{"v":0,"d":"0 Kč"}},{"$f":"INDEX(Parametry[],MATCH(Podrobnosti[[#This Row],[TYP PROJEKTU]],Parametry[TYP PROJEKTU],0),MATCH(Podrobnosti[[#Headers],[ADMINISTRATIVNÍ PRACOVNÍCI]],Parametry[#Headers],0))*INDEX('PARAMETRY PROJEKTU'!$B$12:$H$12,1,MATCH(Podrobnosti[[#Headers],[ADMINISTRATIVNÍ PRACOVNÍCI]],Parametry[#Headers],0))*Podrobnosti[[#This Row],[PŘEDPOKLÁDANÁ PRÁCE]]","v":{"v":5625,"d":"5,625 Kč"}},{"$f":"INDEX(Parametry[],MATCH(Podrobnosti[[#This Row],[TYP PROJEKTU]],Parametry[TYP PROJEKTU],0),MATCH(Podrobnosti[[#Headers],[GENERÁLNÍ PARTNER]],Parametry[#Headers],0))*INDEX('PARAMETRY PROJEKTU'!$B$12:$H$12,1,MATCH(Podrobnosti[[#Headers],[GENERÁLNÍ PARTNER]],Parametry[#Headers],0))*Podrobnosti[[#This Row],[SKUTEČNÁ PRÁCE]]","v":{"v":5075,"d":"5,075 Kč"}},{"$f":"INDEX(Parametry[],MATCH(Podrobnosti[[#This Row],[TYP PROJEKTU]],Parametry[TYP PROJEKTU],0),MATCH(Podrobnosti[[#Headers],[OBCHODNÍ PRÁVNÍK]],Parametry[#Headers],0))*INDEX('PARAMETRY PROJEKTU'!$B$12:$H$12,1,MATCH(Podrobnosti[[#Headers],[OBCHODNÍ PRÁVNÍK]],Parametry[#Headers],0))*Podrobnosti[[#This Row],[SKUTEČNÁ PRÁCE]]","v":{"v":0,"d":"0 Kč"}},{"$f":"INDEX(Parametry[],MATCH(Podrobnosti[[#This Row],[TYP PROJEKTU]],Parametry[TYP PROJEKTU],0),MATCH(Podrobnosti[[#Headers],[PRÁVNÍ PORADCE OBHAJOBY]],Parametry[#Headers],0))*INDEX('PARAMETRY PROJEKTU'!$B$12:$H$12,1,MATCH(Podrobnosti[[#Headers],[PRÁVNÍ PORADCE OBHAJOBY]],Parametry[#Headers],0))*Podrobnosti[[#This Row],[SKUTEČNÁ PRÁCE]]","v":{"v":0,"d":"0 Kč"}},{"$f":"INDEX(Parametry[],MATCH(Podrobnosti[[#This Row],[TYP PROJEKTU]],Parametry[TYP PROJEKTU],0),MATCH(Podrobnosti[[#Headers],[DUŠEVNÍ VLASTNICTVÍ – PRÁVNÍK]],Parametry[#Headers],0))*INDEX('PARAMETRY PROJEKTU'!$B$12:$H$12,1,MATCH(Podrobnosti[[#Headers],[DUŠEVNÍ VLASTNICTVÍ – PRÁVNÍK]],Parametry[#Headers],0))*Podrobnosti[[#This Row],[SKUTEČNÁ PRÁCE]]","v":{"v":23925,"d":"23,925 Kč"}},{"$f":"INDEX(Parametry[],MATCH(Podrobnosti[[#This Row],[TYP PROJEKTU]],Parametry[TYP PROJEKTU],0),MATCH(Podrobnosti[[#Headers],[BANKROTY – PRÁVNÍK]],Parametry[#Headers],0))*INDEX('PARAMETRY PROJEKTU'!$B$12:$H$12,1,MATCH(Podrobnosti[[#Headers],[BANKROTY – PRÁVNÍK]],Parametry[#Headers],0))*Podrobnosti[[#This Row],[SKUTEČNÁ PRÁCE]]","v":{"v":0,"d":"0 Kč"}},{"$f":"INDEX(Parametry[],MATCH(Podrobnosti[[#This Row],[TYP PROJEKTU]],Parametry[TYP PROJEKTU],0),MATCH(Podrobnosti[[#Headers],[ADMINISTRATIVNÍ PRACOVNÍCI]],Parametry[#Headers],0))*INDEX('PARAMETRY PROJEKTU'!$B$12:$H$12,1,MATCH(Podrobnosti[[#Headers],[ADMINISTRATIVNÍ PRACOVNÍCI]],Parametry[#Headers],0))*Podrobnosti[[#This Row],[SKUTEČNÁ PRÁCE]]","v":{"v":5437.5,"d":"5,438 Kč"}}]
[null,"Projekt 5","Soud se zaměstnancem",{"$f":"TODAY()+220","v":"2019-09-23"},{"$f":"TODAY()+250","v":"2019-10-23"},{"$f":"TODAY()+230","v":"2019-10-03"},{"$f":"TODAY()+259","v":"2019-11-01"},250,255,{"$f":"DAYS360(Podrobnosti[[#This Row],[PŘEDPOKLÁDANÉ ZAHÁJENÍ]],Podrobnosti[[#This Row],[PŘEDPOKLÁDANÉ DOKONČENÍ]],FALSE)","v":30},{"$f":"DAYS360(Podrobnosti[[#This Row],[SKUTEČNÉ ZAHÁJENÍ]],Podrobnosti[[#This Row],[SKUTEČNÉ DOKONČENÍ]],FALSE)","v":28},{"$f":"INDEX(Parametry[],MATCH(Podrobnosti[[#This Row],[TYP PROJEKTU]],Parametry[TYP PROJEKTU],0),MATCH(Podrobnosti[[#Headers],[GENERÁLNÍ PARTNER]],Parametry[#Headers],0))*INDEX('PARAMETRY PROJEKTU'!$B$12:$H$12,1,MATCH(Podrobnosti[[#Headers],[GENERÁLNÍ PARTNER]],Parametry[#Headers],0))*Podrobnosti[[#This Row],[PŘEDPOKLÁDANÁ PRÁCE]]","v":{"v":17500,"d":"17,500 Kč"}},{"$f":"INDEX(Parametry[],MATCH(Podrobnosti[[#This Row],[TYP PROJEKTU]],Parametry[TYP PROJEKTU],0),MATCH(Podrobnosti[[#Headers],[OBCHODNÍ PRÁVNÍK]],Parametry[#Headers],0))*INDEX('PARAMETRY PROJEKTU'!$B$12:$H$12,1,MATCH(Podrobnosti[[#Headers],[OBCHODNÍ PRÁVNÍK]],Parametry[#Headers],0))*Podrobnosti[[#This Row],[PŘEDPOKLÁDANÁ PRÁCE]]","v":{"v":6250,"d":"6,250 Kč"}},{"$f":"INDEX(Parametry[],MATCH(Podrobnosti[[#This Row],[TYP PROJEKTU]],Parametry[TYP PROJEKTU],0),MATCH(Podrobnosti[[#Headers],[PRÁVNÍ PORADCE OBHAJOBY]],Parametry[#Headers],0))*INDEX('PARAMETRY PROJEKTU'!$B$12:$H$12,1,MATCH(Podrobnosti[[#Headers],[PRÁVNÍ PORADCE OBHAJOBY]],Parametry[#Headers],0))*Podrobnosti[[#This Row],[PŘEDPOKLÁDANÁ PRÁCE]]","v":{"v":30000,"d":"30,000 Kč"}},{"$f":"INDEX(Parametry[],MATCH(Podrobnosti[[#This Row],[TYP PROJEKTU]],Parametry[TYP PROJEKTU],0),MATCH(Podrobnosti[[#Headers],[DUŠEVNÍ VLASTNICTVÍ – PRÁVNÍK]],Parametry[#Headers],0))*INDEX('PARAMETRY PROJEKTU'!$B$12:$H$12,1,MATCH(Podrobnosti[[#Headers],[DUŠEVNÍ VLASTNICTVÍ – PRÁVNÍK]],Parametry[#Headers],0))*Podrobnosti[[#This Row],[PŘEDPOKLÁDANÁ PRÁCE]]","v":{"v":0,"d":"0 Kč"}},{"$f":"INDEX(Parametry[],MATCH(Podrobnosti[[#This Row],[TYP PROJEKTU]],Parametry[TYP PROJEKTU],0),MATCH(Podrobnosti[[#Headers],[BANKROTY – PRÁVNÍK]],Parametry[#Headers],0))*INDEX('PARAMETRY PROJEKTU'!$B$12:$H$12,1,MATCH(Podrobnosti[[#Headers],[BANKROTY – PRÁVNÍK]],Parametry[#Headers],0))*Podrobnosti[[#This Row],[PŘEDPOKLÁDANÁ PRÁCE]]","v":{"v":0,"d":"0 Kč"}},{"$f":"INDEX(Parametry[],MATCH(Podrobnosti[[#This Row],[TYP PROJEKTU]],Parametry[TYP PROJEKTU],0),MATCH(Podrobnosti[[#Headers],[ADMINISTRATIVNÍ PRACOVNÍCI]],Parametry[#Headers],0))*INDEX('PARAMETRY PROJEKTU'!$B$12:$H$12,1,MATCH(Podrobnosti[[#Headers],[ADMINISTRATIVNÍ PRACOVNÍCI]],Parametry[#Headers],0))*Podrobnosti[[#This Row],[PŘEDPOKLÁDANÁ PRÁCE]]","v":{"v":9375,"d":"9,375 Kč"}},{"$f":"INDEX(Parametry[],MATCH(Podrobnosti[[#This Row],[TYP PROJEKTU]],Parametry[TYP PROJEKTU],0),MATCH(Podrobnosti[[#Headers],[GENERÁLNÍ PARTNER]],Parametry[#Headers],0))*INDEX('PARAMETRY PROJEKTU'!$B$12:$H$12,1,MATCH(Podrobnosti[[#Headers],[GENERÁLNÍ PARTNER]],Parametry[#Headers],0))*Podrobnosti[[#This Row],[SKUTEČNÁ PRÁCE]]","v":{"v":17850,"d":"17,850 Kč"}},{"$f":"INDEX(Parametry[],MATCH(Podrobnosti[[#This Row],[TYP PROJEKTU]],Parametry[TYP PROJEKTU],0),MATCH(Podrobnosti[[#Headers],[OBCHODNÍ PRÁVNÍK]],Parametry[#Headers],0))*INDEX('PARAMETRY PROJEKTU'!$B$12:$H$12,1,MATCH(Podrobnosti[[#Headers],[OBCHODNÍ PRÁVNÍK]],Parametry[#Headers],0))*Podrobnosti[[#This Row],[SKUTEČNÁ PRÁCE]]","v":{"v":6375,"d":"6,375 Kč"}},{"$f":"INDEX(Parametry[],MATCH(Podrobnosti[[#This Row],[TYP PROJEKTU]],Parametry[TYP PROJEKTU],0),MATCH(Podrobnosti[[#Headers],[PRÁVNÍ PORADCE OBHAJOBY]],Parametry[#Headers],0))*INDEX('PARAMETRY PROJEKTU'!$B$12:$H$12,1,MATCH(Podrobnosti[[#Headers],[PRÁVNÍ PORADCE OBHAJOBY]],Parametry[#Headers],0))*Podrobnosti[[#This Row],[SKUTEČNÁ PRÁCE]]","v":{"v":30600,"d":"30,600 Kč"}},{"$f":"INDEX(Parametry[],MATCH(Podrobnosti[[#This Row],[TYP PROJEKTU]],Parametry[TYP PROJEKTU],0),MATCH(Podrobnosti[[#Headers],[DUŠEVNÍ VLASTNICTVÍ – PRÁVNÍK]],Parametry[#Headers],0))*INDEX('PARAMETRY PROJEKTU'!$B$12:$H$12,1,MATCH(Podrobnosti[[#Headers],[DUŠEVNÍ VLASTNICTVÍ – PRÁVNÍK]],Parametry[#Headers],0))*Podrobnosti[[#This Row],[SKUTEČNÁ PRÁCE]]","v":{"v":0,"d":"0 Kč"}},{"$f":"INDEX(Parametry[],MATCH(Podrobnosti[[#This Row],[TYP PROJEKTU]],Parametry[TYP PROJEKTU],0),MATCH(Podrobnosti[[#Headers],[BANKROTY – PRÁVNÍK]],Parametry[#Headers],0))*INDEX('PARAMETRY PROJEKTU'!$B$12:$H$12,1,MATCH(Podrobnosti[[#Headers],[BANKROTY – PRÁVNÍK]],Parametry[#Headers],0))*Podrobnosti[[#This Row],[SKUTEČNÁ PRÁCE]]","v":{"v":0,"d":"0 Kč"}},{"$f":"INDEX(Parametry[],MATCH(Podrobnosti[[#This Row],[TYP PROJEKTU]],Parametry[TYP PROJEKTU],0),MATCH(Podrobnosti[[#Headers],[ADMINISTRATIVNÍ PRACOVNÍCI]],Parametry[#Headers],0))*INDEX('PARAMETRY PROJEKTU'!$B$12:$H$12,1,MATCH(Podrobnosti[[#Headers],[ADMINISTRATIVNÍ PRACOVNÍCI]],Parametry[#Headers],0))*Podrobnosti[[#This Row],[SKUTEČNÁ PRÁCE]]","v":{"v":9562.5,"d":"9,563 Kč"}}]
[null,"CELKEM",{"$nulls":5},{"$f":"SUBTOTAL(109,Podrobnosti[PŘEDPOKLÁDANÁ PRÁCE])","v":1500},{"$f":"SUBTOTAL(109,Podrobnosti[SKUTEČNÁ PRÁCE])","v":1510},{"$f":"SUBTOTAL(109,Podrobnosti[PŘEDPOKLÁDANÁ DOBA TRVÁNÍ])","v":190},{"$f":"SUBTOTAL(109,Podrobnosti[SKUTEČNÁ DOBA TRVÁNÍ])","v":171}]

{"sheet":"CELKOVÉ ČÁSTKY PROJEKTU","index":3,"n_rows":11,"n_cols":16,"rows_kept":11,"merged":[[3,2,3,7],[3,8,3,13],[3,15,14,19]]}
["Na tomto listu máte Celkové částky projektu. V buňce vpravo se automaticky aktualizuje název společnosti. Užitečné pokyny jsou v buňkách v tomto sloupci. Začněte stisknutím šipky dolů.",{"$f":"'PARAMETRY PROJEKTU'!B1","v":"Název společnosti"}]
["V buňce napravo je název tohoto listu.",{"$f":"'PARAMETRY PROJEKTU'!B2","v":"Plánování projektu pro advokátní kanceláře"}]
["V buňce napravo je zpráva o důvěrnosti nebo utajení.",{"$f":"'PARAMETRY PROJEKTU'!B3","v":"Název společnosti – důvěrné"}]
["Popisek Předpoklad je v buňce C4, popisek Skutečnost v buňce I4, a informační tip je v buňce P4.",null,"PŘEDPOKLAD",{"$nulls":5},"SKUTEČNOST",{"$nulls":6},"INFORMACE: \nTato kontingenční tabulka se neaktualizuje automaticky.  Aktualizovat ji můžete tak, že ji vyberete (kliknete na libovolnou buňku v kontingenční tabulce) a na kartě NÁSTROJE KONTINGENČNÍ TABULKY | ANALÝZA vyberete Aktualizovat.  Můžete také vybrat kontingenční tabulku, stisknout SHIFT+F10 a vybrat Aktualizovat."]
["Kontingenční tabulka začínající v buňce vpravo se aktualizuje automaticky.","NÁZEV PROJEKTU","GENERÁLNÍ PARTNER ","FIRMA ","PRÁVNÍ PORADCE OBHAJOBY ","DUŠEVNÍ VLASTNICTVÍ ","BANKROT ","ADMINISTRATIVNÍ PRACOVNÍCI ","GENERÁLNÍ PARTNER  ","FIRMA  ","PRÁVNÍ PORADCE OBHAJOBY  ","BANKROT  ","DUŠEVNÍ VLASTNICTVÍ  ","ADMINISTRATIVNÍ PRACOVNÍCI  "]
[null,"Projekt 1",{"v":7000,"d":"7,000.00 Kč"},{"v":20000,"d":"20,000.00 Kč"},{"v":0,"d":"0.00 Kč"},{"v":0,"d":"0.00 Kč"},{"v":0,"d":"0.00 Kč"},{"v":12500,"d":"12,500.00 Kč"},{"v":7700,"d":"7,700.00 Kč"},{"v":22000,"d":"22,000.00 Kč"},{"v":0,"d":"0.00 Kč"},{"v":0,"d":"0.00 Kč"},{"v":0,"d":"0.00 Kč"},{"v":13750,"d":"13,750.00 Kč"}]
[null,"Projekt 2",{"v":14000,"d":"14,000.00 Kč"},{"v":40000,"d":"40,000.00 Kč"},{"v":0,"d":"0.00 Kč"},{"v":11000,"d":"11,000.00 Kč"},{"v":0,"d":"0.00 Kč"},{"v":20000,"d":"20,000.00 Kč"},{"v":13650,"d":"13,650.00 Kč"},{"v":39000,"d":"39,000.00 Kč"},{"v":0,"d":"0.00 Kč"},{"v":10725,"d":"10,725.00 Kč"},{"v":0,"d":"0.00 Kč"},{"v":19500,"d":"19,500.00 Kč"}]
[null,"Projekt 3",{"v":35000,"d":"35,000.00 Kč"},{"v":0,"d":"0.00 Kč"},{"v":75000,"d":"75,000.00 Kč"},{"v":0,"d":"0.00 Kč"},{"v":0,"d":"0.00 Kč"},{"v":18750,"d":"18,750.00 Kč"},{"v":35000,"d":"35,000.00 Kč"},{"v":0,"d":"0.00 Kč"},{"v":75000,"d":"75,000.00 Kč"},{"v":0,"d":"0.00 Kč"},{"v":0,"d":"0.00 Kč"},{"v":18750,"d":"18,750.00 Kč"}]
[null,"Projekt 4",{"v":5250,"d":"5,250.00 Kč"},{"v":0,"d":"0.00 Kč"},{"v":0,"d":"0.00 Kč"},{"v":24750,"d":"24,750.00 Kč"},{"v":0,"d":"0.00 Kč"},{"v":5625,"d":"5,625.00 Kč"},{"v":5075,"d":"5,075.00 Kč"},{"v":0,"d":"0.00 Kč"},{"v":0,"d":"0.00 Kč"},{"v":23925,"d":"23,925.00 Kč"},{"v":0,"d":"0.00 Kč"},{"v":5437.5,"d":"5,437.50 Kč"}]
[null,"Projekt 5",{"v":17500,"d":"17,500.00 Kč"},{"v":6250,"d":"6,250.00 Kč"},{"v":30000,"d":"30,000.00 Kč"},{"v":0,"d":"0.00 Kč"},{"v":0,"d":"0.00 Kč"},{"v":9375,"d":"9,375.00 Kč"},{"v":17850,"d":"17,850.00 Kč"},{"v":6375,"d":"6,375.00 Kč"},{"v":30600,"d":"30,600.00 Kč"},{"v":0,"d":"0.00 Kč"},{"v":0,"d":"0.00 Kč"},{"v":9562.5,"d":"9,562.50 Kč"}]
[null,"Celkový součet",{"v":78750,"d":"78,750.00 Kč"},{"v":66250,"d":"66,250.00 Kč"},{"v":105000,"d":"105,000.00 Kč"},{"v":35750,"d":"35,750.00 Kč"},{"v":0,"d":"0.00 Kč"},{"v":66250,"d":"66,250.00 Kč"},{"v":79275,"d":"79,275.00 Kč"},{"v":67375,"d":"67,375.00 Kč"},{"v":105600,"d":"105,600.00 Kč"},{"v":34650,"d":"34,650.00 Kč"},{"v":0,"d":"0.00 Kč"},{"v":67000,"d":"67,000.00 Kč"}]